[Event "Mistrovství Čech mládeže 2023 - HD16"]
[Site "Harrachov, Czech Republic"]
[Date "2023.10.21"]
[Round "1.8"]
[White "Maršík, Ondřej"]
[Black "Andrle, Filip"]
[Result "0-1"]
[TimeControl "90m + 30s"]
[WhiteElo "1459"]
[BlackElo "1830"]

1. e4 {[%clk 01:30:55]} {[%emt 00:00:04]} c5 {[%clk 01:30:49]} {[%emt
00:00:12]} 2. Nf3 {[%clk 01:31:08]} {[%emt 00:00:17]} Nc6 {[%clk 01:31:08]}
{[%emt 00:00:10]} 3. d4 {[%clk 01:30:57]} {[%emt 00:00:42]} cxd4 {[%clk
01:31:24]} {[%emt 00:00:15]} 4. Nxd4 {[%clk 01:31:19]} {[%emt 00:00:08]} Nf6
{[%clk 01:30:32]} {[%emt 00:01:21]} 5. Nc3 {[%clk 01:30:42]} {[%emt 00:01:07]}
d6 {[%clk 01:30:32]} {[%emt 00:00:29]} 6. Be2 {[%clk 01:26:20]} {[%emt
00:04:52]} e5 {[%clk 01:27:39]} {[%emt 00:03:22]} 7. Nf3 {[%clk 01:22:46]}
{[%emt 00:04:04]} Be7 {[%clk 01:25:44]} {[%emt 00:02:25]} 8. O-O {[%clk
01:22:03]} {[%emt 00:01:13]} O-O {[%clk 01:25:55]} {[%emt 00:00:18]} 9. Bg5
{[%clk 01:19:45]} {[%emt 00:02:48]} Be6 {[%clk 01:24:58]} {[%emt 00:01:27]} 10.
Qd2 {[%clk 01:15:22]} {[%emt 00:04:53]} Qd7 {[%clk 01:21:58]} {[%emt 00:03:29]}
11. Rad1 {[%clk 01:10:59]} {[%emt 00:04:54]} Rfd8 {[%clk 01:21:43]} {[%emt
00:00:46]} 12. Bxf6 {[%clk 01:01:43]} {[%emt 00:09:46]} Bxf6 {[%clk 01:20:40]}
{[%emt 00:01:33]} 13. Nd5 {[%clk 01:01:59]} {[%emt 00:00:15]} Be7 {[%clk
01:11:05]} {[%emt 00:10:04]} 14. Bc4 {[%clk 00:53:40]} {[%emt 00:08:49]} h6
{[%clk 01:02:39]} {[%emt 00:08:56]} 15. Rfe1 {[%clk 00:42:15]} {[%emt
00:11:56]} Rac8 {[%clk 01:00:29]} {[%emt 00:02:39]} 16. Bb3 {[%clk 00:35:03]}
{[%emt 00:07:42]} b5 {[%clk 00:37:15]} {[%emt 00:23:43]} 17. Re3 {[%clk
00:31:10]} {[%emt 00:04:23]} Bf8 {[%clk 00:35:09]} {[%emt 00:02:36]} 18. Rd3
{[%clk 00:28:09]} {[%emt 00:03:32]} Qb7 {[%clk 00:33:45]} {[%emt 00:01:53]} 19.
c3 {[%clk 00:24:16]} {[%emt 00:04:23]} Na5 {[%clk 00:28:55]} {[%emt 00:05:20]}
20. Nh4 {[%clk 00:13:51]} {[%emt 00:10:54]} Nxb3 {[%clk 00:21:31]} {[%emt
00:07:54]} 21. axb3 {[%clk 00:14:07]} {[%emt 00:00:14]} Be7 {[%clk 00:17:00]}
{[%emt 00:05:01]} 22. Nf5 {[%clk 00:09:12]} {[%emt 00:05:24]} Bg5 {[%clk
00:11:40]} {[%emt 00:05:50]} 23. Qe2 {[%clk 00:04:22]} {[%emt 00:05:21]} g6
{[%clk 00:09:25]} {[%emt 00:02:44]} 24. Nfe3 {[%clk 00:03:27]} {[%emt
00:01:25]} Kg7 {[%clk 00:06:34]} {[%emt 00:03:21]} 25. g3 {[%clk 00:03:28]}
{[%emt 00:00:30]} Bxe3 {[%clk 00:05:56]} {[%emt 00:01:07]} 26. Qxe3 {[%clk
00:03:43]} {[%emt 00:00:15]} Rc5 {[%clk 00:02:05]} {[%emt 00:04:21]} 27. f4
{[%clk 00:03:19]} {[%emt 00:00:54]} exf4 {[%clk 00:00:40]} {[%emt 00:01:55]} 28.
Qxf4 {[%clk 00:03:42]} {[%emt 00:00:07]} Bxd5 {[%clk 00:00:45]} {[%emt
00:00:25]} 29. Rxd5 {[%clk 00:03:57]} {[%emt 00:00:15]} Rxd5 {[%clk 00:00:55]}
{[%emt 00:00:19]} 30. Rxd5 {[%clk 00:04:25]} {[%emt 00:00:02]} Re8 {[%clk
00:00:36]} {[%emt 00:00:49]} 31. Rxd6 {[%clk 00:02:05]} {[%emt 00:02:51]} Qxe4
{[%clk 00:00:38]} {[%emt 00:00:28]} 32. Qxe4 {[%clk 00:01:21]} {[%emt
00:01:13]} Rxe4 {[%clk 00:00:50]} {[%emt 00:00:17]} 33. Kf2 {[%clk 00:01:47]}
{[%emt 00:00:05]} Re7 {[%clk 00:00:40]} {[%emt 00:00:40]} 34. c4 {[%clk
00:01:38]} {[%emt 00:00:39]} bxc4 {[%clk 00:00:40]} {[%emt 00:00:30]} 35. bxc4
{[%clk 00:01:59]} {[%emt 00:00:09]} Rb7 {[%clk 00:00:48]} {[%emt 00:00:22]} 36.
Rd2 {[%clk 00:02:05]} {[%emt 00:00:23]} Kf6 {[%clk 00:00:58]} {[%emt 00:00:21]}
37. Ke3 {[%clk 00:01:34]} {[%emt 00:01:01]} Ke5 {[%clk 00:00:43]} {[%emt
00:00:44]} 38. c5 {[%clk 00:01:07]} {[%emt 00:00:57]} a5 {[%clk 00:00:41]}
{[%emt 00:00:32]} 39. c6 {[%emt 00:00:52]} Rc7 {[%clk 00:00:56]} {[%emt
00:00:14]} 40. Rd7 {[%clk 00:00:58]} {[%emt 00:00:18]} Rxc6 {[%clk 00:01:07]}
{[%emt 00:00:19]} 41. Rxf7 {[%clk 00:01:18]} {[%emt 00:00:10]} Rb6 {[%clk
00:01:07]} {[%emt 00:00:30]} 42. Rf2 {[%clk 00:01:34]} {[%emt 00:00:12]} Rb3+
{[%clk 00:01:26]} {[%emt 00:00:12]} 0-1

[Event "Mistrovství Čech mládeže 2023 - HD16"]
[Site "Harrachov, Czech Republic"]
[Date "2023.10.21"]
[Round "1.9"]
[White "Sadil, Antonín"]
[Black "Dominiková, Denisa"]
[Result "1/2-1/2"]
[TimeControl "90m + 30s"]
[WhiteElo "1792"]
[BlackElo "1445"]

1. e4 {[%clk 01:30:51]} {[%emt 00:00:08]} e5 {[%clk 01:30:44]} {[%emt
00:00:16]} 2. Nf3 {[%clk 01:31:07]} {[%emt 00:00:15]} Nc6 {[%clk 01:30:59]}
{[%emt 00:00:15]} 3. Bc4 {[%clk 01:31:26]} {[%emt 00:00:11]} Bc5 {[%clk
01:31:01]} {[%emt 00:00:27]} 4. c3 {[%clk 01:31:36]} {[%emt 00:00:20]} Qe7
{[%clk 01:30:46]} {[%emt 00:00:45]} 5. d3 {[%clk 01:31:28]} {[%emt 00:00:38]}
d6 {[%clk 01:29:48]} {[%emt 00:01:28]} 6. b4 {[%clk 01:30:37]} {[%emt
00:01:21]} Bb6 {[%clk 01:28:43]} {[%emt 00:01:35]} 7. a4 {[%clk 01:30:22]}
{[%emt 00:00:45]} a6 {[%clk 01:26:37]} {[%emt 00:02:35]} 8. a5 {[%clk
01:30:35]} {[%emt 00:00:17]} Ba7 {[%clk 01:24:31]} {[%emt 00:02:36]} 9. O-O
{[%clk 01:24:59]} {[%emt 00:06:07]} Nf6 {[%clk 01:21:55]} {[%emt 00:03:05]} 10.
Nbd2 {[%clk 01:22:57]} {[%emt 00:02:32]} O-O {[%clk 01:18:07]} {[%emt
00:04:18]} 11. h3 {[%clk 01:20:52]} {[%emt 00:02:35]} h6 {[%clk 01:06:01]}
{[%emt 00:12:36]} 12. Re1 {[%clk 01:15:39]} {[%emt 00:05:43]} Be6 {[%clk
01:02:16]} {[%emt 00:04:15]} 13. Bxe6 {[%clk 01:13:18]} {[%emt 00:02:52]} fxe6
{[%clk 00:57:59]} {[%emt 00:04:47]} 14. Nf1 {[%clk 01:12:15]} {[%emt 00:01:32]}
Qf7 {[%clk 00:55:00]} {[%emt 00:03:29]} 15. Be3 {[%clk 01:10:21]} {[%emt
00:02:24]} Bxe3 {[%clk 00:50:38]} {[%emt 00:04:52]} 16. Nxe3 {[%clk 01:10:00]}
{[%emt 00:00:51]} Nh5 {[%clk 00:43:42]} {[%emt 00:07:26]} 17. Qb3 {[%clk
01:03:19]} {[%emt 00:07:11]} Nf4 {[%clk 00:39:14]} {[%emt 00:04:58]} 18. Rad1
{[%clk 00:44:35]} {[%emt 00:19:14]} Nxh3+ {[%clk 00:35:06]} {[%emt 00:04:38]}
19. gxh3 {[%clk 00:44:28]} {[%emt 00:00:38]} Qg6+ {[%clk 00:34:28]} {[%emt
00:01:08]} 20. Kf1 {[%clk 00:41:42]} {[%emt 00:03:15]} Rxf3 {[%clk 00:34:10]}
{[%emt 00:00:48]} 21. Ke2 {[%clk 00:41:31]} {[%emt 00:00:41]} Raf8 {[%clk
00:30:26]} {[%emt 00:04:15]} 22. Nf5 {[%clk 00:40:20]} {[%emt 00:01:42]} Qh5
{[%clk 00:24:20]} {[%emt 00:06:31]} 23. Qxe6+ {[%clk 00:39:46]} {[%emt
00:01:09]} Kh8 {[%clk 00:23:29]} {[%emt 00:01:21]} 24. Kd2 {[%clk 00:37:24]}
{[%emt 00:02:52]} Rxf2+ {[%clk 00:22:38]} {[%emt 00:01:20]} 25. Kc1 {[%clk
00:37:26]} {[%emt 00:00:29]} Qf7 {[%clk 00:17:10]} {[%emt 00:05:57]} 26. Qxf7
{[%clk 00:35:55]} {[%emt 00:02:02]} Rxf7 {[%clk 00:17:33]} {[%emt 00:00:07]} 27.
Rg1 {[%clk 00:35:54]} {[%emt 00:00:30]} Rf3 {[%clk 00:15:09]} {[%emt 00:02:54]}
28. h4 {[%clk 00:35:46]} {[%emt 00:00:38]} Kh7 {[%clk 00:13:45]} {[%emt
00:01:54]} 29. h5 {[%clk 00:32:00]} {[%emt 00:04:16]} Rh3 {[%clk 00:13:09]}
{[%emt 00:01:06]} 30. Rh1 {[%clk 00:32:21]} {[%emt 00:00:09]} Rxh1 {[%clk
00:13:17]} {[%emt 00:00:21]} 31. Rxh1 {[%clk 00:32:49]} {[%emt 00:00:02]} Ne7
{[%clk 00:12:32]} {[%emt 00:01:13]} 32. Nxe7 {[%clk 00:30:25]} {[%emt
00:02:57]} Rxe7 {[%clk 00:12:58]} {[%emt 00:00:05]} 33. Kd2 {[%clk 00:30:09]}
{[%emt 00:00:45]} g5 {[%clk 00:11:33]} {[%emt 00:01:54]} 34. hxg6+ {[%clk
00:29:23]} {[%emt 00:01:16]} Kxg6 {[%clk 00:11:56]} {[%emt 00:00:07]} 35. Ke3
{[%clk 00:28:58]} {[%emt 00:00:55]} Rf7 {[%clk 00:10:24]} {[%emt 00:02:02]} 36.
Rg1+ {[%clk 00:28:28]} {[%emt 00:01:01]} Kh7 {[%clk 00:10:30]} {[%emt
00:00:23]} 37. Rh1 {[%clk 00:27:46]} {[%emt 00:01:13]} b6 {[%clk 00:08:53]}
{[%emt 00:02:08]} 38. Ra1 {[%clk 00:25:56]} {[%emt 00:02:20]} b5 {[%clk
00:08:38]} {[%emt 00:00:45]} 39. c4 {[%clk 00:25:32]} {[%emt 00:00:54]} c6
{[%clk 00:07:44]} {[%emt 00:01:24]} 40. cxb5 {[%clk 00:25:35]} {[%emt
00:00:27]} axb5 {[%clk 00:06:38]} {[%emt 00:01:37]} 41. Rc1 {[%clk 00:25:23]}
{[%emt 00:00:41]} Rc7 {[%clk 00:04:31]} {[%emt 00:02:35]} 42. a6 {[%clk
00:25:09]} {[%emt 00:00:46]} c5 {[%clk 00:03:46]} {[%emt 00:01:15]} 43. Ra1
{[%clk 00:22:29]} {[%emt 00:03:09]} Ra7 {[%clk 00:03:58]} {[%emt 00:00:18]} 44.
bxc5 {[%clk 00:22:33]} {[%emt 00:00:27]} dxc5 {[%clk 00:04:19]} {[%emt
00:00:09]} 45. Ra5 {[%clk 00:22:47]} {[%emt 00:00:15]} b4 {[%clk 00:02:51]}
{[%emt 00:01:58]} 46. Rxc5 {[%clk 00:22:50]} {[%emt 00:00:28]} Rxa6 {[%clk
00:03:11]} {[%emt 00:00:10]} 47. Rb5 {[%clk 00:22:57]} {[%emt 00:00:22]} Kg6
{[%clk 00:02:11]} {[%emt 00:01:29]} 48. Rxb4 {[%clk 00:21:52]} {[%emt
00:01:36]} h5 {[%clk 00:01:33]} {[%emt 00:01:08]} 49. Rb8 {[%clk 00:21:00]}
{[%emt 00:01:22]} Kf7 {[%clk 00:01:13]} {[%emt 00:00:48]} 50. Rh8 {[%clk
00:19:45]} {[%emt 00:01:45]} Kg6 {[%clk 00:01:29]} {[%emt 00:00:13]} 51. Rg8+
{[%clk 00:19:53]} {[%emt 00:00:22]} Kf6 {[%clk 00:00:51]} {[%emt 00:01:05]} 52.
Rf8+ {[%clk 00:18:48]} {[%emt 00:01:39]} Kg6 {[%clk 00:00:35]} {[%emt
00:00:47]} 53. Rf5 {[%clk 00:14:08]} {[%emt 00:05:09]} Re6 {[%clk 00:00:56]}
{[%emt 00:00:08]} 54. d4 {[%clk 00:12:30]} {[%emt 00:02:09]} exd4+ {[%clk
00:01:19]} {[%emt 00:00:07]} 55. Kxd4 {[%clk 00:12:36]} {[%emt 00:00:24]}
1/2-1/2

[Event "Mistrovství Čech mládeže 2023 - HD16"]
[Site "Harrachov, Czech Republic"]
[Date "2023.10.21"]
[Round "1.10"]
[White "Krupka, Aleš"]
[Black "Dvořák, Jan"]
[Result "0-1"]
[TimeControl "90m + 30s"]
[WhiteElo "1444"]
[BlackElo "1789"]

1. e4 {[%clk 01:30:51]} {[%emt 00:00:09]} e6 {[%clk 01:30:50]} {[%emt
00:00:10]} 2. d4 {[%clk 01:31:17]} {[%emt 00:00:04]} d5 {[%clk 01:31:11]}
{[%emt 00:00:08]} 3. exd5 {[%clk 01:25:35]} {[%emt 00:06:12]} exd5 {[%clk
01:31:34]} {[%emt 00:00:08]} 4. Nf3 {[%clk 01:25:06]} {[%emt 00:00:59]} Nf6
{[%clk 01:31:17]} {[%emt 00:00:47]} 5. Nc3 {[%clk 01:23:53]} {[%emt 00:01:43]}
Be7 {[%clk 01:28:12]} {[%emt 00:03:35]} 6. Be2 {[%clk 01:20:52]} {[%emt
00:03:31]} O-O {[%clk 01:28:26]} {[%emt 00:00:17]} 7. O-O {[%clk 01:21:12]}
{[%emt 00:00:10]} Nbd7 {[%clk 01:28:12]} {[%emt 00:00:44]} 8. Bf4 {[%clk
01:16:42]} {[%emt 00:05:00]} b6 {[%clk 01:22:47]} {[%emt 00:05:55]} 9. Nb5
{[%clk 01:04:40]} {[%emt 00:12:32]} Ne8 {[%clk 01:23:06]} {[%emt 00:00:11]} 10.
Re1 {[%clk 01:00:17]} {[%emt 00:04:53]} Bb7 {[%clk 01:22:05]} {[%emt 00:01:31]}
11. Bd3 {[%clk 00:57:21]} {[%emt 00:03:26]} c5 {[%clk 01:16:24]} {[%emt
00:06:10]} 12. Qe2 {[%clk 00:45:22]} {[%emt 00:12:29]} Bf6 {[%clk 01:14:19]}
{[%emt 00:02:36]} 13. c3 {[%clk 00:41:13]} {[%emt 00:04:39]} a6 {[%clk
01:10:52]} {[%emt 00:03:57]} 14. Nd6 {[%clk 00:40:46]} {[%emt 00:00:57]} Nxd6
{[%clk 01:10:58]} {[%emt 00:00:24]} 15. Bxd6 {[%clk 00:41:11]} {[%emt
00:00:04]} Re8 {[%clk 01:10:39]} {[%emt 00:00:48]} 16. Qd2 {[%clk 00:39:18]}
{[%emt 00:02:01]} Be7 {[%clk 00:59:03]} {[%emt 00:12:29]} 17. dxc5 {[%clk
00:26:37]} {[%emt 00:13:11]} bxc5 {[%clk 00:49:43]} {[%emt 00:09:49]} 18. Bxe7
{[%clk 00:23:54]} {[%emt 00:03:13]} Rxe7 {[%clk 00:50:03]} {[%emt 00:00:11]} 19.
Qf4 {[%clk 00:19:57]} {[%emt 00:04:25]} Nf8 {[%clk 00:45:51]} {[%emt 00:04:43]}
20. Rxe7 {[%clk 00:17:35]} {[%emt 00:02:53]} Qxe7 {[%clk 00:46:02]} {[%emt
00:00:19]} 21. Re1 {[%clk 00:17:51]} {[%emt 00:00:14]} Ne6 {[%clk 00:46:06]}
{[%emt 00:00:26]} 22. Qg4 {[%clk 00:09:50]} {[%emt 00:08:18]} Rd8 {[%clk
00:44:55]} {[%emt 00:01:52]} 23. h4 {[%clk 00:04:43]} {[%emt 00:05:39]} Bc8
{[%clk 00:37:47]} {[%emt 00:07:37]} 24. Bxh7+ {[%clk 00:02:01]} {[%emt
00:03:12]} Kf8 {[%clk 00:33:13]} {[%emt 00:05:04]} 25. Bf5 {[%clk 00:02:12]}
{[%emt 00:00:19]} Qf6 {[%clk 00:30:37]} {[%emt 00:03:06]} 26. Bxe6 {[%clk
00:02:15]} {[%emt 00:00:27]} Bxe6 {[%clk 00:30:43]} {[%emt 00:00:24]} 27. Qh5
{[%clk 00:01:54]} {[%emt 00:00:49]} Qh6 {[%clk 00:23:06]} {[%emt 00:08:08]} 28.
Qe5 {[%clk 00:01:50]} {[%emt 00:00:34]} Qf6 {[%clk 00:20:29]} {[%emt 00:03:07]}
29. Qc7 {[%clk 00:02:18]} {[%emt 00:00:02]} Qe7 {[%clk 00:20:22]} {[%emt
00:00:37]} 30. Qb6 {[%clk 00:02:32]} {[%emt 00:00:16]} Qd6 {[%clk 00:20:28]}
{[%emt 00:00:25]} 31. Qa5 {[%clk 00:02:08]} {[%emt 00:00:50]} d4 {[%clk
00:14:53]} {[%emt 00:06:08]} 32. cxd4 {[%clk 00:01:47]} {[%emt 00:00:52]} cxd4
{[%clk 00:15:13]} {[%emt 00:00:09]} 33. Rd1 {[%clk 00:01:38]} {[%emt 00:00:39]}
d3 {[%clk 00:14:40]} {[%emt 00:01:04]} 34. a3 {[%clk 00:02:00]} {[%emt
00:00:08]} Bb3 {[%clk 00:13:46]} {[%emt 00:01:23]} 35. Rd2 {[%clk 00:02:16]}
{[%emt 00:00:15]} Rc8 {[%clk 00:13:39]} {[%emt 00:00:37]} 36. Ne1 {[%clk
00:01:48]} {[%emt 00:00:58]} Rc1 {[%clk 00:10:21]} {[%emt 00:03:48]} 37. Kf1
{[%clk 00:02:13]} {[%emt 00:00:05]} Qe7 {[%clk 00:10:15]} {[%emt 00:00:36]} 38.
Rxd3 {[%clk 00:00:46]} {[%emt 00:01:58]} Bc4 {[%clk 00:10:32]} {[%emt
00:00:13]} 39. g3 {[%clk 00:00:35]} {[%emt 00:00:41]} Bxd3+ {[%clk 00:10:39]}
{[%emt 00:00:24]} 40. Kg2 {[%clk 00:00:56]} {[%emt 00:00:08]} Rxe1 {[%clk
00:10:44]} {[%emt 00:00:26]} 41. Qc3 {[%clk 00:00:47]} {[%emt 00:00:40]} Qe4+
{[%clk 00:10:28]} {[%emt 00:00:45]} 0-1

[Event "Mistrovství Čech mládeže 2023 - HD16"]
[Site "Harrachov, Czech Republic"]
[Date "2023.10.21"]
[Round "1.11"]
[White "Kaplanová, Dominika"]
[Black "Mauder, Karel"]
[Result "1-0"]
[TimeControl "90m + 30s"]
[WhiteElo "1782"]
[BlackElo "1423"]

1. d4 {[%clk 01:30:49]} {[%emt 00:00:09]} Nf6 {[%clk 01:30:48]} {[%emt
00:00:13]} 2. c4 {[%clk 01:31:03]} {[%emt 00:00:17]} e6 {[%clk 01:31:02]}
{[%emt 00:00:16]} 3. g3 {[%clk 01:31:10]} {[%emt 00:00:22]} Bb4+ {[%clk
01:29:59]} {[%emt 00:01:33]} 4. Bd2 {[%clk 01:31:15]} {[%emt 00:00:25]} Bxd2+
{[%clk 01:29:57]} {[%emt 00:00:33]} 5. Qxd2 {[%clk 01:31:03]} {[%emt 00:00:41]}
O-O {[%clk 01:30:02]} {[%emt 00:00:25]} 6. Bg2 {[%clk 01:30:44]} {[%emt
00:00:48]} d5 {[%clk 01:28:10]} {[%emt 00:02:24]} 7. e3 {[%clk 01:29:06]}
{[%emt 00:02:08]} Nbd7 {[%clk 01:22:55]} {[%emt 00:05:46]} 8. Ne2 {[%clk
01:24:17]} {[%emt 00:05:19]} dxc4 {[%clk 01:17:18]} {[%emt 00:06:07]} 9. Qc2
{[%clk 01:21:41]} {[%emt 00:03:04]} c5 {[%clk 01:12:30]} {[%emt 00:05:19]} 10.
Qxc4 {[%clk 01:18:25]} {[%emt 00:03:45]} Qb6 {[%clk 01:08:13]} {[%emt
00:04:47]} 11. Qc2 {[%clk 01:15:09]} {[%emt 00:03:46]} cxd4 {[%clk 01:06:06]}
{[%emt 00:02:37]} 12. Nxd4 {[%clk 01:13:23]} {[%emt 00:02:16]} Nc5 {[%clk
01:01:56]} {[%emt 00:04:40]} 13. O-O {[%clk 01:10:04]} {[%emt 00:03:49]} e5
{[%clk 00:59:29]} {[%emt 00:02:56]} 14. Nf3 {[%clk 01:02:59]} {[%emt 00:07:35]}
e4 {[%clk 00:50:49]} {[%emt 00:09:10]} 15. Nfd2 {[%clk 00:57:52]} {[%emt
00:05:37]} Bf5 {[%clk 00:47:15]} {[%emt 00:04:04]} 16. Nc3 {[%clk 00:55:19]}
{[%emt 00:03:03]} Rac8 {[%clk 00:39:39]} {[%emt 00:08:07]} 17. Qb1 {[%clk
00:30:00]} {[%emt 00:25:49]} Qe6 {[%clk 00:27:41]} {[%emt 00:12:28]} 18. Ne2
{[%clk 00:27:48]} {[%emt 00:02:42]} Qa6 {[%clk 00:15:47]} {[%emt 00:12:25]} 19.
Nd4 {[%clk 00:26:49]} {[%emt 00:01:29]} Bg6 {[%clk 00:15:46]} {[%emt 00:00:30]}
20. b3 {[%clk 00:23:19]} {[%emt 00:04:00]} Nd3 {[%clk 00:14:42]} {[%emt
00:01:35]} 21. Nc4 {[%clk 00:22:47]} {[%emt 00:01:02]} Nd5 {[%clk 00:13:55]}
{[%emt 00:01:17]} 22. Ne2 {[%clk 00:17:33]} {[%emt 00:05:43]} b5 {[%clk
00:11:53]} {[%emt 00:02:33]} 23. Nd2 {[%clk 00:15:33]} {[%emt 00:02:29]} f5
{[%clk 00:11:24]} {[%emt 00:00:59]} 24. g4 {[%clk 00:12:39]} {[%emt 00:03:24]}
Rce8 {[%clk 00:05:19]} {[%emt 00:06:36]} 25. gxf5 {[%clk 00:12:17]} {[%emt
00:00:51]} Bxf5 {[%clk 00:05:01]} {[%emt 00:00:48]} 26. Bxe4 {[%clk 00:11:00]}
{[%emt 00:01:47]} Qg6+ {[%clk 00:02:15]} {[%emt 00:03:16]} 27. Ng3 {[%clk
00:10:59]} {[%emt 00:00:32]} Bxe4 {[%clk 00:01:46]} {[%emt 00:00:59]} 28. Ndxe4
{[%clk 00:10:42]} {[%emt 00:00:47]} Rxe4 {[%clk 00:00:53]} {[%emt 00:01:23]} 29.
Qxd3 {[%clk 00:10:56]} {[%emt 00:00:16]} Nf6 {[%clk 00:00:59]} {[%emt
00:00:24]} 30. Kh1 {[%clk 00:09:36]} {[%emt 00:01:50]} Re5 {[%clk 00:00:45]}
{[%emt 00:00:45]} 31. Qxg6 {[%clk 00:09:55]} {[%emt 00:00:10]} hxg6 {[%clk
00:01:14]} {[%emt 00:00:01]} 32. Rac1 {[%clk 00:09:42]} {[%emt 00:00:43]} Ne4
{[%clk 00:00:51]} {[%emt 00:00:53]} 33. Nxe4 {[%clk 00:09:30]} {[%emt
00:00:42]} Rxe4 {[%clk 00:01:20]} {[%emt 00:00:01]} 34. Rc5 {[%clk 00:09:05]}
{[%emt 00:00:55]} Rxe3 {[%clk 00:00:41]} {[%emt 00:01:09]} 35. Rxb5 {[%clk
00:07:52]} {[%emt 00:01:42]} Re7 {[%clk 00:00:44]} {[%emt 00:00:26]} 36. Ra5
{[%clk 00:07:48]} {[%emt 00:00:34]} Rd8 {[%clk 00:00:50]} {[%emt 00:00:23]} 37.
Kg2 {[%clk 00:06:57]} {[%emt 00:01:22]} Rd4 {[%clk 00:01:17]} {[%emt 00:00:03]}
38. f3 {[%clk 00:06:33]} {[%emt 00:00:54]} Kf7 {[%clk 00:01:34]} {[%emt
00:00:13]} 39. Rf2 {[%clk 00:06:20]} {[%emt 00:00:42]} Kf6 {[%clk 00:01:50]}
{[%emt 00:00:15]} 40. Rc2 {[%clk 00:05:30]} {[%emt 00:01:19]} Rh4 {[%clk
00:01:44]} {[%emt 00:00:34]} 41. Kg3 {[%clk 00:05:21]} {[%emt 00:00:40]} Rh5
{[%clk 00:01:50]} {[%emt 00:00:25]} 42. Rc6+ {[%clk 00:03:07]} {[%emt
00:02:44]} Kf7 {[%clk 00:02:12]} {[%emt 00:00:08]} 43. Rca6 {[%clk 00:03:13]}
{[%emt 00:00:24]} Rxa5 {[%clk 00:01:24]} {[%emt 00:01:18]} 44. Rxa5 {[%clk
00:03:42]} {[%emt 00:00:02]} Kf6 {[%clk 00:01:33]} {[%emt 00:00:21]} 45. Kg4
{[%clk 00:03:42]} {[%emt 00:00:29]} Re2 {[%clk 00:01:20]} {[%emt 00:00:44]} 46.
Rxa7 {[%clk 00:02:45]} {[%emt 00:01:27]} Rxh2 {[%clk 00:01:31]} {[%emt
00:00:18]} 47. a4 {[%clk 00:02:03]} {[%emt 00:01:13]} Rb2 {[%clk 00:01:29]}
{[%emt 00:00:31]} 48. Ra6+ {[%clk 00:02:06]} {[%emt 00:00:27]} Ke5 {[%clk
00:01:20]} {[%emt 00:00:33]} 49. f4+ {[%clk 00:01:56]} {[%emt 00:00:44]} Ke4
{[%clk 00:01:48]} {[%emt 00:00:02]} 50. Re6+ {[%clk 00:01:46]} {[%emt
00:00:41]} Kd5 {[%clk 00:01:53]} {[%emt 00:00:24]} 51. Rxg6 {[%clk 00:01:58]}
{[%emt 00:00:18]} Ke4 {[%clk 00:01:00]} {[%emt 00:01:23]} 52. Re6+ {[%clk
00:02:06]} {[%emt 00:00:21]} Kd5 {[%clk 00:01:17]} {[%emt 00:00:14]} 53. Rb6
{[%clk 00:02:01]} {[%emt 00:00:35]} Ke4 {[%clk 00:01:29]} {[%emt 00:00:18]} 54.
Rb4+ {[%clk 00:01:46]} {[%emt 00:00:46]} Kd5 {[%clk 00:01:47]} {[%emt
00:00:12]} 55. Kf5 {[%clk 00:01:54]} {[%emt 00:00:22]} Rg2 {[%clk 00:02:02]}
{[%emt 00:00:14]} 56. Rb6 {[%clk 00:01:29]} {[%emt 00:00:54]} Rg3 {[%clk
00:01:57]} {[%emt 00:00:36]} 57. b4 {[%clk 00:01:13]} {[%emt 00:00:47]} Rh3
{[%clk 00:01:44]} {[%emt 00:00:43]} 58. Rb7 {[%clk 00:00:57]} {[%emt 00:00:46]}
Rg3 {[%clk 00:01:52]} {[%emt 00:00:21]} 59. Rb5+ {[%clk 00:01:02]} {[%emt
00:00:26]} Kc6 {[%clk 00:02:11]} {[%emt 00:00:11]} 60. Re5 {[%clk 00:00:49]}
{[%emt 00:00:44]} Kb6 {[%clk 00:01:55]} {[%emt 00:00:45]} 61. Re6+ {[%clk
00:01:00]} {[%emt 00:00:19]} Kb7 {[%clk 00:02:19]} {[%emt 00:00:06]} 62. Rg6
{[%clk 00:01:20]} {[%emt 00:00:10]} Kb6 {[%clk 00:02:37]} {[%emt 00:00:13]} 1-0